[Event "U18 Burschen rapid"]
[Site "AUT_boys_U18"]
[Date "2020.12.13"]
[Round "1"]
[White "Kreuzturm"]
[Black "Konstantin Peyrer"]
[Result "0-1"]
[WhiteElo "1956"]
[BlackElo "2193"]
[PlyCount "56"]
[EventDate "2020.12.13"]
[EventType "blitz"]
[TimeControl "600+3"]

1. Nf3 {[%emt 0:00:07]} Nf6 {[%emt 0:00:03]} 2. d4 {[%emt 0:00:05]} g6 {[%emt 0:00:01]} 3. g3 {[%emt 0:00:01]} Bg7 {[%emt 0:00:01]} 4. Bg2 {[%emt 0:00:00]} O-O {[%emt 0:00:00]} 5. O-O {[%emt 0:00:01]} d5 {[%emt 0:00:00]} 6. c4 {[%emt 0:00:04]} dxc4 {[%emt 0:00:01]} 7. Na3 {[%emt 0:00:02]} c3 {[%emt 0:00:01]} 8. bxc3 {[%emt 0:00:02]} c5 {[%emt 0:00:00]} 9. Nc4 {[%emt 0:00:23]} Nc6 {[%emt 0:00:03]} 10. Nce5 {[%emt 0:00:08]} Nxe5 {[%emt 0:00:11]} 11. Nxe5 {[%emt 0:00:03]} Nd5 {[%emt 0:00:21]} 12. Bb2 {[%emt 0:00:15]} Nb6 {[%emt 0:00:11]} 13. Rb1 {[%emt 0:00:32]} Qc7 {[%emt 0:00:03]} 14. Nf3 {[%emt 0:00:06]} Bf5 {[%emt 0:00:05]} 15. Rc1 {[%emt 0:00:02]} Rfd8 {[%emt 0:00:14]} 16. Nh4 {[%emt 0:00:03]} Be6 {[%emt 0:00:02]} 17. a3 {[%emt 0:00:09]} Rac8 {[%emt 0:00:51]} 18. e4 {[%emt 0:00:22]} Bc4 {[%emt 0:00:08]} 19. Re1 {[%emt 0:00:03]} Qd7 {[%emt 0:00:02]} 20. Nf3 {[%emt 0:00:13]} Qb5 {[%emt 0:00:13]} 21. Qd2 {[%emt 0:00:46]} e6 {[%emt 0:00:14]} 22. Red1 {[%emt 0:00:40]} Bb3 {[%emt 0:00:07]} 23. Re1 {[%emt 0:00:01]} Nc4 {[%emt 0:00:10]} 24. Qe2 {[%emt 0:00:03]} Qa4 {[%emt 0:00:15]} 25. Nd2 {[%emt 0:00:29]} Nxb2 {[%emt 0:00:05]} 26. Nxb3 {[%emt 0:00:03]} Qxb3 {[%emt 0:00:00]} 27. Rb1 {[%emt 0:00:01]} Qxc3 {[%emt 0:00:02]} 28. Rxb2 {[%emt 0:00:02]} cxd4 {[%emt 0:00:02] Kreuzturm resigns} 0-1